fUSD/lending_fUSD_20240319
["ID","MTS","AMOUNT","RATE_DAILY","PERIOD"]
[319527430,1710827471251,-500.0,0.00055068,120]
[319527431,1710827471261,-500.0,0.00055068,120]
[319527432,1710827471272,-500.0,0.00055068,120]
[319527433,1710827471282,-500.0,0.00055068,120]
[319527434,1710827471293,-500.0,0.00055068,120]
[319527435,1710827471304,-1147.76,0.00055068,120]
[319527436,1710827471315,-1745.12,0.00055068,120]
[319527437,1710827471327,-500.0,0.00055068,120]
[319527438,1710827471337,-500.0,0.00055068,120]
[319527439,1710827471347,-925.63,0.00055068,120]
[319527440,1710827471358,-854.16,0.00055068,120]
[319527441,1710827471368,-500.0,0.00055068,120]
[319527442,1710827471378,-505.11,0.00055068,120]
[319527443,1710827471388,-500.0,0.00055068,120]
[319527444,1710827471399,-734.76,0.00055068,120]
[319527445,1710827471409,-535.28,0.00055068,120]
[319527446,1710827471420,-526.02,0.00055068,120]
[319527447,1710827471431,-500.0,0.00055068,120]
[319527448,1710827471441,-500.0,0.00055068,120]
[319527449,1710827471451,-500.0,0.00055068,120]
[319527450,1710827471461,-500.0,0.00055068,120]
[319527451,1710827471476,-1564.61,0.00055068,120]
[319527452,1710827471486,-1313.48,0.00055068,120]
[319527453,1710827471496,-500.0,0.00055068,120]
[319527454,1710827471507,-2662.67,0.00055068,120]
[319527455,1710827471517,-500.0,0.00055068,120]
[319527456,1710827471527,-500.0,0.00055068,120]
[319527457,1710827471537,-1397.08,0.00055068,120]
[319527458,1710827471547,-500.0,0.00055068,120]
[319527459,1710827471558,-269.3,0.00055068,120]
[319527460,1710827471568,-866.38,0.00055068,120]
[319527461,1710827471578,-1097.4,0.00055068,120]
[319527462,1710827471588,-1439.36,0.00055068,120]
[319527463,1710827471598,-500.0,0.00055068,120]
[319527464,1710827471607,-500.0,0.00055068,120]
[319527465,1710827471617,-500.0,0.00055068,120]
[319527466,1710827471626,-1928.4,0.00055068,120]
[319527467,1710827471637,-500.0,0.00055068,120]
[319527468,1710827471646,-500.0,0.00055068,120]
[319527469,1710827471656,-1964.81,0.00055068,120]
[319527470,1710827471667,-500.0,0.00055068,120]
[319527471,1710827471677,-660.08,0.00055068,120]
[319527472,1710827471689,-1239.73,0.00055068,120]
[319527473,1710827471699,-500.0,0.00055068,120]
[319527474,1710827471709,-500.0,0.00055068,120]
[319527475,1710827471722,-500.0,0.00055068,120]
[319527476,1710827471732,-967.08,0.00055068,120]
[319527477,1710827471741,-500.0,0.00055068,120]
[319527478,1710827471751,-500.0,0.00055068,120]
[319527479,1710827471762,-1730.58,0.00055068,120]
[319527480,1710827471772,-500.0,0.00055068,120]
[319527481,1710827471782,-500.0,0.00055068,120]
[319527482,1710827471792,-500.0,0.00055068,120]
[319527483,1710827471802,-1374.2,0.00055068,120]
[319527484,1710827471814,-1049.65,0.00055068,120]
[319527485,1710827471825,-2060.17,0.00055068,120]
[319527486,1710827471835,-510.5,0.00055068,120]
[319527487,1710827471845,-500.0,0.00055068,120]
[319527488,1710827471856,-500.0,0.00055068,120]
[319527489,1710827471866,-500.0,0.00055068,120]
[319527490,1710827471876,-500.0,0.00055068,120]
[319527491,1710827471885,-500.0,0.00055068,120]
[319527492,1710827471895,-500.0,0.00055068,120]
[319527493,1710827471905,-1994.76,0.00055068,120]
[319527494,1710827471915,-500.0,0.00055068,120]
[319527495,1710827471926,-1336.07,0.00055068,120]
[319527496,1710827471936,-2991.56,0.00055068,120]
[319527497,1710827471946,-595.79,0.00055068,120]
[319527498,1710827471956,-500.0,0.00055068,120]
[319527499,1710827471970,-500.0,0.00055068,120]
[319527500,1710827471981,-500.0,0.00055068,120]
[319527501,1710827471991,-1021.8,0.00055068,120]
[319527502,1710827472001,-500.0,0.00055068,120]
[319527503,1710827472012,-1288.74,0.00055068,120]
[319527504,1710827472023,-500.0,0.00055068,120]
[319527505,1710827472034,-500.0,0.00055068,120]
[319527506,1710827472044,-500.0,0.00055068,120]
[319527507,1710827472054,-1779.68,0.00055068,120]
[319527508,1710827472064,-500.0,0.00055068,120]
[319527509,1710827472075,-1753.04,0.00055068,120]
[319527510,1710827472085,-500.0,0.00055068,120]
[319527511,1710827472095,-500.0,0.00055068,120]
[319527512,1710827472104,-500.0,0.00055068,120]
[319527513,1710827472114,-479.4942443,0.00055068,120]
[319527514,1710827472124,-500.0,0.00055068,120]
[319527515,1710827472135,-500.0,0.00055068,120]
[319527516,1710827472144,-500.0,0.00055068,120]
[319527517,1710827472154,-509.93,0.00055068,120]
[319527518,1710827472164,-2273.03,0.00055068,120]
[319527519,1710827472174,-1250.13,0.00055068,120]
[319527520,1710827472184,-650.12,0.00055068,120]
[319527521,1710827472194,-500.0,0.00055068,120]
[319527522,1710827472204,-1725.58,0.00055068,120]
[319527523,1710827472214,-500.0,0.00055068,120]
[319527524,1710827472226,-500.0,0.00055068,120]
[319527525,1710827472236,-500.0,0.00055068,120]
[319527526,1710827472245,-500.0,0.00055068,120]
[319527527,1710827472255,-593.53,0.00055068,120]
[319527528,1710827472266,-500.0,0.00055068,120]
[319527529,1710827472276,-1663.43,0.00055068,120]
[319527530,1710827472287,-500.0,0.00055068,120]
[319527531,1710827472297,-500.0,0.00055068,120]
[319527532,1710827472308,-500.0,0.00055068,120]
[319527533,1710827472319,-500.0,0.00055068,120]
[319527534,1710827472330,-500.0,0.00055068,120]
[319527535,1710827472341,-507.44850768,0.00055068,120]
[319527536,1710827472351,-500.0,0.00055068,120]
[319527537,1710827472361,-644.0651388,0.00055068,120]
[319527538,1710827472372,-515.58,0.00055068,120]
[319527539,1710827472382,-500.0,0.00055068,120]
[319527540,1710827472392,-500.0,0.00055068,120]
[319527541,1710827472402,-578.4,0.00055068,120]
[319527542,1710827472413,-500.0,0.00055068,120]
[319527543,1710827472422,-500.0,0.00055068,120]
[319527544,1710827472432,-580.72,0.00055068,120]
[319527545,1710827472441,-500.0,0.00055068,120]
[319527546,1710827472450,-500.0,0.00055068,120]
[319527547,1710827472459,-1961.16,0.00055068,120]
[319527548,1710827472472,-500.0,0.00055068,120]
[319527549,1710827472481,-500.0,0.00055068,120]
[319527550,1710827472490,-500.0,0.00055068,120]
[319527551,1710827472500,-500.0,0.00055068,120]
[319527552,1710827472509,-633.93,0.00055068,120]
[319527553,1710827472519,-500.0,0.00055068,120]
[319527554,1710827472529,-500.0,0.00055068,120]
[319527555,1710827472539,-500.0,0.00055068,120]
[319527556,1710827472548,-500.0,0.00055068,120]
[319527557,1710827472558,-500.0,0.00055068,120]
[319527558,1710827472567,-500.0,0.00055068,120]
[319527559,1710827472577,-500.0,0.00055068,120]
[319527560,1710827472586,-1389.97,0.00055068,120]
[319527561,1710827472596,-500.0,0.00055068,120]
[319527562,1710827472606,-500.0,0.00055068,120]
[319527563,1710827472616,-1624.64,0.00055068,120]
[319527564,1710827472625,-500.0,0.00055068,120]
[319527565,1710827472634,-500.0,0.00055068,120]
[319527566,1710827472644,-500.0,0.00055068,120]
[319527567,1710827472653,-500.0,0.00055068,120]
[319527568,1710827472664,-500.0,0.00055068,120]
[319527569,1710827472674,-500.0,0.00055068,120]
[319527570,1710827472685,-500.0,0.00055068,120]
[319527571,1710827472695,-500.0,0.00055068,120]
[319527572,1710827472705,-650.76,0.00055068,120]
[319527573,1710827472715,-500.0,0.00055068,120]
[319527574,1710827472728,-500.0,0.00055068,120]
[319527575,1710827472738,-348.16502677,0.00055068,120]
[319527576,1710827472748,-500.0,0.00055068,120]
[319527577,1710827472758,-500.0,0.00055068,120]
[319527578,1710827472770,-500.0,0.00055068,120]
[319527579,1710827472779,-500.0,0.00055068,120]
[319527580,1710827472789,-322.08323886,0.00055068,120]
[319527581,1710827472798,-500.0,0.00055068,120]
[319527582,1710827472810,-500.0,0.00055068,120]
[319527583,1710827472821,-500.0,0.00055068,120]
[319527584,1710827472830,-1101.66,0.00055068,120]
[319527585,1710827472840,-805.67,0.00055068,120]
[319527586,1710827472850,-500.0,0.00055068,120]
[319527587,1710827472860,-500.0,0.00055068,120]
[319527588,1710827472869,-7025.4,0.00055068,120]
[319527589,1710827472879,-500.0,0.00055068,120]
[319527590,1710827472890,-500.0,0.00055068,120]
[319527591,1710827472900,-5000.0,0.00055068,120]
[319527592,1710827472912,-500.0,0.00055068,120]
[319527593,1710827472922,-500.0,0.00055068,120]
[319527594,1710827472932,-500.0,0.00055068,120]
[319527595,1710827472942,-500.0,0.00055068,120]
[319527596,1710827472952,-500.0,0.00055068,120]
[319527597,1710827472963,-500.0,0.00055068,120]
[319527598,1710827472978,-777.69,0.00055068,120]
[319527599,1710827472987,-1841.28,0.00055068,120]
[319527600,1710827473074,-500.0,0.00055068,120]
[319527601,1710827473085,-500.0,0.00055068,120]
[319527602,1710827473095,-2559.72,0.00055068,120]
[319527603,1710827473105,-500.0,0.00055068,120]
[319527604,1710827473115,-329.48,0.00055068,120]
[319527605,1710827473125,-531.0,0.00055068,120]
[319527606,1710827473134,-1186.03,0.00055068,120]
[319527607,1710827473144,-809.07,0.00055068,120]
[319527608,1710827473154,-502.65166319,0.00055068,120]
[319527609,1710827473164,-500.0,0.00055068,120]
[319527610,1710827473173,-829.75,0.00055068,120]
[319527611,1710827473183,-500.0,0.00055068,120]
[319527612,1710827473193,-500.0,0.00055068,120]
[319527613,1710827473203,-500.0,0.00055068,120]
[319527614,1710827473213,-500.0,0.00055068,120]
[319527615,1710827473226,-233.80520948,0.00055068,120]
[319527616,1710827473236,-503.79336972,0.00055068,120]
[319527617,1710827473246,-500.0,0.00055068,120]
[319527618,1710827473256,-1669.33,0.00055068,120]
[319527619,1710827473265,-500.0,0.00055068,120]
[319527620,1710827473275,-500.0,0.00055068,120]
[319527621,1710827473285,-500.0,0.00055068,120]
[319527622,1710827473295,-500.0,0.00055068,120]
[319527623,1710827473304,-500.0,0.00055068,120]
[319527624,1710827473314,-1063.99,0.00055068,120]
[319527625,1710827473324,-500.0,0.00055068,120]
[319527626,1710827473334,-500.0,0.00055068,120]
[319527627,1710827473344,-500.0,0.00055068,120]
[319527628,1710827473354,-500.0,0.00055068,120]
[319527629,1710827473364,-1101.81,0.00055068,120]
[319527630,1710827473374,-5517.49,0.00055068,120]
[319527631,1710827473384,-500.0,0.00055068,120]
[319527632,1710827473394,-829.57,0.00055068,2]
[319527633,1710827473405,-723.99,0.00055068,120]
[319527634,1710827473415,-500.0,0.00055068,120]
[319527635,1710827473424,-2640.45,0.00055068,120]
[319527636,1710827473434,-500.0,0.00055068,120]
[319527637,1710827473443,-500.0,0.00055068,120]
[319527638,1710827473454,-500.0,0.00055068,120]
[319527639,1710827473463,-2000.0,0.00055068,120]
[319527640,1710827473476,-1422.87,0.00055068,120]
[319527641,1710827473488,-831.79,0.00055068,120]
[319527642,1710827473500,-500.0,0.00055068,120]
[319527643,1710827473511,-500.0,0.00055068,120]
[319527644,1710827473522,-1889.43,0.00055068,120]
[319527645,1710827473532,-501.44,0.00055068,120]
[319527646,1710827473543,-500.0,0.00055068,120]
[319527647,1710827473553,-1718.81,0.00055068,120]
[319527648,1710827473563,-500.0,0.00055068,120]
[319527649,1710827473575,-500.0,0.00055068,120]
[319527650,1710827473585,-500.0,0.00055068,120]
[319527651,1710827473596,-500.0,0.00055068,120]
[319527652,1710827473607,-500.0,0.00055068,120]
[319527653,1710827473618,-500.0,0.00055068,120]
[319527654,1710827473630,-568.35,0.00055068,120]
[319527655,1710827473641,-500.0,0.00055068,120]
[319527656,1710827473653,-575.02,0.00055068,120]
[319527657,1710827473663,-17299.49,0.00055068,120]
[319527658,1710827473674,-500.0,0.00055068,120]
[319527659,1710827473686,-1873.11,0.00055068,120]
[319527660,1710827473696,-1866.96,0.00055068,120]
[319527661,1710827473707,-811.96,0.00055068,120]
[319527662,1710827473722,-500.0,0.00055068,120]
[319527663,1710827473735,-502.2268026,0.00055068,120]
[319527664,1710827473747,-500.0,0.00055068,120]
[319527665,1710827473759,-500.0,0.00055068,120]
[319527666,1710827473770,-500.0,0.00055068,120]
[319527667,1710827473784,-500.0,0.00055068,120]
[319527668,1710827473795,-2357.17,0.00055068,120]
[319527669,1710827473807,-500.0,0.00055068,120]
[319527670,1710827473820,-500.0,0.00055068,120]
[319527671,1710827473832,-500.0,0.00055068,120]
[319527672,1710827473844,-500.0,0.00055068,120]
[319527673,1710827473856,-500.0,0.00055068,120]
[319527674,1710827473868,-512.47322421,0.00055068,120]
[319527675,1710827473879,-500.0,0.00055068,120]
[319527676,1710827473891,-398.40002717,0.00055068,120]
[319527677,1710827473902,-1040.88,0.00055068,120]
[319527678,1710827473913,-2406.01,0.00055068,120]
[319527679,1710827473925,-500.0,0.00055068,120]
[319527680,1710827473936,-500.0,0.00055068,120]
[319527681,1710827473948,-500.0,0.00055068,120]
[319527682,1710827473959,-500.0,0.00055068,120]
[319527683,1710827473981,-500.0,0.00055068,120]
[319527684,1710827473995,-6514.2,0.00055068,120]
[319527685,1710827474006,-2625.47,0.00055068,120]
[319527686,1710827474017,-642.2,0.00055068,120]
[319527687,1710827474029,-1089.93,0.00055068,120]
[319527688,1710827474039,-660.71,0.00055068,120]
[319527689,1710827474050,-504.72881133,0.00055068,120]
[319527690,1710827474061,-1126.8,0.00055068,120]
[319527691,1710827474072,-511.66844472,0.00055068,120]
[319527692,1710827474094,-500.0,0.00055068,120]
[319527693,1710827474105,-500.0,0.00055068,120]
[319527694,1710827474115,-500.0,0.00055068,120]
[319527695,1710827474125,-500.0,0.00055068,120]
[319527696,1710827474136,-500.0,0.00055068,120]
[319527697,1710827474147,-500.0,0.00055068,120]
[319527698,1710827474157,-500.0,0.00055068,120]
[319527699,1710827474167,-500.0,0.00055068,120]
[319527700,1710827474178,-636.97,0.00055068,120]
[319527701,1710827474190,-500.0,0.00055068,120]
[319527702,1710827474201,-1070.72,0.00055068,120]
[319527703,1710827474212,-500.0,0.00055068,120]
[319527704,1710827474228,-1652.91,0.00055068,120]
[319527705,1710827474239,-2901.93,0.00055068,120]
[319527706,1710827474255,-14962.68,0.00055068,120]
[319527707,1710827474270,-1082.41,0.00055068,120]
[319527708,1710827474280,-500.0,0.00055068,120]
[319527709,1710827474291,-940.31,0.00055068,120]
[319527710,1710827474301,-500.0,0.00055068,120]
[319527711,1710827474311,-500.0,0.00055068,120]
[319527712,1710827474321,-1116.86,0.00055068,120]
[319527713,1710827474331,-500.0,0.00055068,120]
[319527714,1710827474340,-500.0,0.00055068,120]
[319527715,1710827474350,-500.0,0.00055068,120]
[319527716,1710827474360,-500.0,0.00055068,120]
[319527717,1710827474369,-500.0,0.00055068,120]
[319527718,1710827474380,-500.0,0.00055068,120]
[319527719,1710827474390,-500.0,0.00055068,120]
[319527720,1710827474400,-212.39975778,0.00055068,120]
[319527721,1710827474410,-1733.23,0.00055068,120]
[319527722,1710827474420,-500.0,0.00055068,120]
[319527723,1710827474431,-630.47,0.00055068,120]
[319527724,1710827474441,-42693.99,0.00055068,120]
[319527725,1710827474451,-790.43,0.00055068,120]
[319527726,1710827474461,-1797.54,0.00055068,120]
[319527727,1710827474474,-500.0,0.00055068,120]
[319527728,1710827474484,-551.71,0.00055068,120]
[319527729,1710827474494,-2323.47,0.00055068,120]
[319527730,1710827474504,-500.0,0.00055068,120]
[319527731,1710827474513,-500.0,0.00055068,120]
[319527732,1710827474523,-500.0,0.00055068,120]
[319527733,1710827474534,-268.58059434,0.00055068,120]
[319527734,1710827474544,-500.0,0.00055068,120]
[319527735,1710827474555,-1627.65,0.00055068,120]
[319527736,1710827474565,-2587.93,0.00055068,120]
[319527737,1710827474574,-500.0,0.00055068,120]
[319527738,1710827474591,-500.0,0.00055068,120]
[319527739,1710827474601,-500.0,0.00055068,120]
[319527740,1710827474623,-500.0,0.00055068,120]
[319527741,1710827474648,-789.4,0.00055068,120]
[319527742,1710827474663,-500.0,0.00055068,120]
[319527743,1710827474681,-3107.75,0.00055068,120]
[319527744,1710827474704,-500.0,0.00055068,120]
[319527745,1710827474714,-500.0,0.00055068,120]
[319527746,1710827474730,-500.0,0.00055068,120]
[319527747,1710827474741,-690.12,0.00055068,120]
[319527748,1710827474763,-500.0,0.00055068,120]
[319527749,1710827474774,-2745.12,0.00055068,120]
[319527750,1710827474785,-1463.63,0.00055068,120]
[319527751,1710827474795,-1332.37,0.00055068,120]
[319527752,1710827474807,-500.0,0.00055068,120]
[319527753,1710827474817,-500.0,0.00055068,120]
[319527754,1710827474830,-500.0,0.00055068,120]
[319527755,1710827474842,-1293.97,0.00055068,120]
[319527756,1710827474854,-2204.05,0.00055068,120]
[319527757,1710827474865,-20464.22,0.00055068,120]
[319527758,1710827474874,-500.0,0.00055068,120]
[319527759,1710827474885,-500.0,0.00055068,120]
[319527760,1710827474895,-500.0,0.00055068,120]
[319527761,1710827474906,-788.79,0.00055068,120]
[319527762,1710827474916,-224.45119789,0.00055068,120]
[319527763,1710827474926,-2173.0,0.00055068,120]
[319527764,1710827474936,-500.0,0.00055068,120]
[319527765,1710827474946,-500.0,0.00055068,120]
[319527766,1710827474956,-500.0,0.00055068,120]
[319527767,1710827474966,-712.63,0.00055068,120]
[319527768,1710827474978,-500.0,0.00055068,120]
[319527769,1710827474988,-500.0,0.00055068,120]
[319527770,1710827474999,-500.0,0.00055068,120]
[319527771,1710827475009,-500.0,0.00055068,120]
[319527772,1710827475020,-274.30552201,0.00055068,120]
[319527773,1710827475030,-747.7,0.00055068,120]
[319527774,1710827475040,-1460.04,0.00055068,120]
[319527775,1710827475050,-983.3,0.00055068,120]
[319527776,1710827475060,-1137.14,0.00055068,120]
[319527777,1710827475070,-5519.3,0.00055068,120]
[319527778,1710827475080,-500.0,0.00055068,120]
[319527779,1710827475089,-500.0,0.00055068,120]
[319527780,1710827475099,-500.0,0.00055068,120]
[319527781,1710827475109,-1542.16,0.00055068,120]
[319527782,1710827475119,-500.0,0.00055068,120]
[319527783,1710827475128,-500.0,0.00055068,120]
[319527784,1710827475139,-2267.0,0.00055068,120]
[319527785,1710827475148,-750.31,0.00055068,120]
[319527786,1710827475158,-500.0,0.00055068,120]
[319527787,1710827475168,-727.93,0.00055068,120]
[319527788,1710827475190,-500.0,0.00055068,120]
[319527789,1710827475205,-500.0,0.00055068,120]
[319527790,1710827475253,-4080.42,0.00055068,120]
[319527791,1710827475268,-500.0,0.00055068,120]
[319527792,1710827475279,-1928.86,0.00055068,120]
[319527793,1710827475290,-500.0,0.00055068,120]
[319527794,1710827475300,-2144.67,0.00055068,120]
[319527795,1710827475310,-1213.92,0.00055068,120]
[319527796,1710827475329,-612.48,0.00055068,120]
[319527797,1710827475339,-841.27,0.00055068,120]
[319527798,1710827475349,-529.15,0.00055068,120]
[319527799,1710827475358,-1271.64,0.00055068,120]
[319527800,1710827475370,-1008.76,0.00055068,120]
[319527801,1710827475382,-500.0,0.00055068,120]
[319527802,1710827475392,-641.45,0.00055068,120]
[319527803,1710827475402,-2497.12,0.00055068,120]
[319527804,1710827475412,-2173.5,0.00055068,120]
[319527805,1710827475422,-500.0,0.00055068,120]
[319527806,1710827475432,-500.0,0.00055068,120]
[319527807,1710827475443,-210.526942,0.00055068,120]
[319527808,1710827475454,-3047.18,0.00055068,120]
[319527809,1710827475464,-1959.73,0.00055068,120]
[319527810,1710827475477,-7410.7,0.00055068,120]
[319527811,1710827475487,-612.7,0.00055068,120]
[319527812,1710827475497,-944.04,0.00055068,120]
[319527813,1710827475506,-500.0,0.00055068,120]
[319527814,1710827475516,-500.0,0.00055068,120]
[319527815,1710827475525,-500.0,0.00055068,120]
[319527816,1710827475536,-722.09,0.00055068,120]
[319527817,1710827475546,-500.0,0.00055068,120]
[319527818,1710827475556,-2628.6,0.00055068,120]
[319527819,1710827475566,-1967.08,0.00055068,120]
[319527820,1710827475576,-2164.28,0.00055068,120]
[319527821,1710827475586,-365.85096142,0.00055068,120]
[319527822,1710827475596,-500.0,0.00055068,120]
[319527823,1710827475607,-500.0,0.00055068,120]
[319527824,1710827475617,-4020.98,0.00055068,120]
[319527825,1710827475627,-647.76,0.00055068,120]
[319527826,1710827475638,-2736.28,0.00055068,120]
[319527827,1710827475649,-500.0,0.00055068,120]
[319527828,1710827475658,-500.0,0.00055068,120]
[319527829,1710827475668,-500.0,0.00055068,120]
[319527830,1710827475677,-500.0,0.00055068,120]
[319527831,1710827475687,-2992.32,0.00055068,120]
[319527832,1710827475697,-631.63,0.00055068,120]
[319527833,1710827475707,-1056.07,0.00055068,120]
[319527834,1710827475717,-500.0,0.00055068,120]
[319527835,1710827475730,-500.0,0.00055068,120]
[319527836,1710827475740,-2979.51,0.00055068,120]
[319527837,1710827475749,-500.0,0.00055068,120]
[319527838,1710827475759,-519.8,0.00055068,120]
[319527839,1710827475773,-500.0,0.00055068,120]
[319527840,1710827475783,-767.17,0.00055068,120]
[319527841,1710827475792,-3047.94,0.00055068,120]
[319527842,1710827475803,-500.0,0.00055068,120]
[319527843,1710827475814,-500.0,0.00055068,120]
[319527844,1710827475824,-382.18756118,0.00055068,120]
[319527845,1710827475834,-500.0,0.00055068,120]
[319527846,1710827475844,-624.69,0.00055068,120]
[319527847,1710827475855,-500.0,0.00055068,120]
[319527848,1710827475865,-6905.17,0.00055068,120]
[319527849,1710827475875,-643.85560111,0.00055068,120]
[319527850,1710827475889,-2551.19,0.00055068,120]
[319527851,1710827475899,-1096.17,0.00055068,120]
[319527852,1710827475919,-1285.54,0.00055068,120]
[319527853,1710827475942,-500.0,0.00055068,120]
[319527854,1710827475952,-500.0,0.00055068,120]
[319527855,1710827475963,-604.78,0.00055068,120]
[319527856,1710827475988,-500.0,0.00055068,120]
[319527857,1710827476021,-500.0,0.00055068,120]
[319527858,1710827476043,-1899.25,0.00055068,120]
[319527859,1710827476055,-500.0,0.00055068,120]
[319527860,1710827476065,-500.0,0.00055068,120]
[319527861,1710827476075,-500.0,0.00055068,120]
[319527862,1710827476086,-1182.85,0.00055068,120]
[319527863,1710827476096,-1089.16,0.00055068,120]
[319527864,1710827476106,-2224.33,0.00055068,120]
[319527865,1710827476117,-500.0,0.00055068,120]
[319527866,1710827476127,-2004.49,0.00055068,120]
[319527867,1710827476137,-1747.58,0.00055068,120]
[319527868,1710827476147,-500.0,0.00055068,120]
[319527869,1710827476157,-1502.65,0.00055068,120]
[319527870,1710827476168,-500.0,0.00055068,120]
[319527871,1710827476180,-500.0,0.00055068,120]
[319527872,1710827476191,-2093.13,0.00055068,120]
[319527873,1710827476202,-500.0,0.00055068,120]
[319527874,1710827476212,-500.0,0.00055068,120]
[319527875,1710827476225,-500.0,0.00055068,120]
[319527876,1710827476234,-500.0,0.00055068,120]
[319527877,1710827476244,-500.0,0.00055068,120]
[319527878,1710827476254,-1662.12,0.00055068,120]
[319527879,1710827476264,-514.33,0.00055068,120]
[319527880,1710827476275,-500.0,0.00055068,120]
[319527881,1710827476284,-1393.08,0.00055068,120]
[319527882,1710827476294,-8736.8,0.00055068,120]
[319527883,1710827476304,-500.0,0.00055068,120]
[319527884,1710827476314,-500.0,0.00055068,120]
[319527885,1710827476323,-658.54,0.00055068,120]
[319527886,1710827476333,-500.0,0.00055068,120]
[319527887,1710827476342,-627.41409196,0.00055068,120]
[319527888,1710827476351,-648.17,0.00055068,120]
[319527889,1710827476361,-500.0,0.00055068,120]
[319527890,1710827476371,-1089.65,0.00055068,120]
[319527891,1710827476381,-2720.05,0.00055068,120]
[319527892,1710827476391,-500.0,0.00055068,120]
[319527893,1710827476401,-500.0,0.00055068,120]
[319527894,1710827476411,-500.0,0.00055068,120]
[319527895,1710827476421,-500.0,0.00055068,120]
[319527896,1710827476431,-1324.1,0.00055068,120]
[319527897,1710827476441,-604.81,0.00055068,120]
[319527898,1710827476451,-3530.08,0.00055068,120]
[319527899,1710827476461,-3588.24,0.00055068,120]
[319527900,1710827476473,-891.74,0.00055068,120]
[319527901,1710827476482,-500.0,0.00055068,120]
[319527902,1710827476492,-3450.35,0.00055068,120]
[319527903,1710827476501,-2217.17,0.00055068,120]
[319527904,1710827476511,-500.0,0.00055068,120]
[319527905,1710827476522,-6392.13,0.00055068,120]
[319527906,1710827476532,-818.66,0.00055068,120]
[319527907,1710827476541,-500.0,0.00055068,120]
[319527908,1710827476551,-712.28,0.00055068,120]
[319527909,1710827476561,-426.22307091,0.00055068,120]
[319527910,1710827476572,-500.0,0.00055068,120]
[319527911,1710827476582,-509.79,0.00055068,120]
[319527912,1710827476592,-690.54,0.00055068,120]
[319527913,1710827476602,-3319.69,0.00055068,120]
[319527914,1710827476612,-500.0,0.00055068,120]
[319527915,1710827476622,-500.0,0.00055068,120]
[319527916,1710827476632,-1812.93,0.00055068,120]
[319527917,1710827476642,-500.0,0.00055068,120]
[319527918,1710827476652,-500.0,0.00055068,120]
[319527919,1710827476662,-502.84045047,0.00055068,120]
[319527920,1710827476673,-1962.31,0.00055068,120]
[319527921,1710827476682,-500.0,0.00055068,120]
[319527922,1710827476693,-3097.92,0.00055068,120]
[319527923,1710827476703,-500.0,0.00055068,120]
[319527924,1710827476713,-1154.31,0.00055068,120]
[319527925,1710827476726,-500.0,0.00055068,120]
[319527926,1710827476736,-685.32,0.00055068,120]
[319527927,1710827476745,-2420.04,0.00055068,120]
[319527928,1710827476755,-368.33263342,0.00055068,120]
[319527929,1710827476773,-1532.56,0.00055068,120]